lending/lending_fUSD_20241212
["ID","MTS","AMOUNT","RATE_DAILY","PERIOD"]
[345116356,1734031281579,-1009.63,0.00017898,2]
[345116357,1734031281599,-1004.43,0.00017898,2]
[345116358,1734031281620,-150.0,0.000193,2]
[345116359,1734031281641,-997.46,0.00019364,2]
[345116360,1734031281663,-986.21,0.00019374,2]
[345116361,1734031281684,-748.3725,0.00019382,2]
[345116362,1734031281705,-1013.28,0.00019382,2]
[345116363,1734031281727,-984.09,0.00019382,2]
[345116364,1734031281749,-984.58,0.00019382,2]
[345116365,1734031281770,-500.0,0.00019482,2]
[345116366,1734031281792,-250.0,0.00019889,2]
[345116367,1734031281812,-692.73,0.00019974,2]
[345116368,1734031281838,-423.48,0.00019974,2]
[345116369,1734031281860,-8293.82,0.00019974,2]
[345116370,1734031281880,-3000.0,0.0002,2]
[345116371,1734031281899,-8182.9188451,0.0002,2]
[345116372,1734031281921,-182.46542582,0.0002003,2]
[345116373,1734031281944,-755.96,0.00020045,2]
[345116374,1734031281965,-1852.42,0.00020082,2]
[345116375,1734031281986,-86954.8689,0.00020085,2]
[345116376,1734031282007,-157.54,0.0002013,2]
[345116377,1734031282028,-250.0,0.0002013,2]
[345116378,1734031282050,-23900.0,0.00020185,2]
[345116379,1734031282076,-150.99,0.00020185,2]
[345116380,1734031282097,-8347.29,0.00020185,2]
[345116381,1734031282120,-200.0,0.00020214,2]
[345116382,1734031282142,-295.5,0.00020214,2]
[345116383,1734031282166,-453.136,0.0002033,2]
[345116384,1734031282190,-2751.0,0.00020805,2]
[345116385,1734031282211,-1102.66,0.00020805,2]
[345116386,1734031288569,1494.4735,0.00019985,2]
[345116387,1734031315134,256.0,0.00020504,2]
[345116389,1734031325217,153.15,0.00010137,2]
[345116391,1734031373639,-153.15,0.00018065,2]
[345116392,1734031373661,-150.0,0.000196,2]
[345116393,1734031373684,-988.36,0.00020316,2]
[345116394,1734031397367,466.04,0.00020393,2]
[345116396,1734031419222,183.81,0.00020398,2]
[345116397,1734031434713,905.09,0.00018473,2]
[345116398,1734031434950,905.09,0.00020737,2]
[345116399,1734031435771,200.0,0.00020391,2]
[345116400,1734031459670,200.0,0.00020383,2]
[345116401,1734031464028,405.42271999,0.0002066,2]
[345116402,1734031493173,1000.0,0.00020383,2]
[345116403,1734031500048,429.43,0.00020602,30]
[345116404,1734031509438,106435.85751183,0.0001,2]
[345116405,1734031513331,7636.01983394,0.0002049,3]
[345116406,1734031514033,150.0,0.000199,2]
[345116407,1734031536118,-1019.28,0.0002076,2]
[345116408,1734031536141,-464.94767924,0.0002076,2]
[345116409,1734031540921,3769.655,0.000154,2]
[345116410,1734031577744,448.37,0.00020412,2]
[345116412,1734031594464,200.0,0.0001879,2]
[345116414,1734031614863,551.33,0.0002013,2]
[345116415,1734031625944,288.0,0.00020759,2]
[345116416,1734031626532,81320.58300621,0.000157,2]
[345116420,1734031632108,-234.29667693,0.0002076,2]
[345116421,1734031650093,-310.62564383,0.0002076,2]
[345116422,1734031650115,-1004.22,0.0002076,2]
[345116423,1734031650137,-1007.53,0.0002076,2]
[345116424,1734031650160,-220.12103791,0.0002076,2]
[345116425,1734031653102,-761.77896209,0.0002076,2]
[345116426,1734031653127,-404.52286595,0.0002076,2]
[345116427,1734031658681,23900.0,0.00020274,2]
[345116428,1734031678757,105313.79192803,0.000119,2]
[345116447,1734031745092,-31448.98523014,0.000119,2]
[345116448,1734031745114,-150.0,0.00015047,2]
[345116475,1734031832120,-150.0,0.000199,2]
[345116476,1734031832130,-288.1314448,0.00020221,2]
[345116477,1734031832318,-698.6885552,0.00020221,2]
[345116478,1734031832330,-119.52918396,0.00020253,2]
[345116479,1734031832342,-1380.47081604,0.00020253,2]
[345116480,1734031832354,-500.0,0.00020257,2]
[345116481,1734031832364,-2324.03310527,0.0002076,10]
[345116482,1734031832374,-591.33713405,0.0002076,2]
[345116483,1734031832383,-990.21,0.0002076,2]
[345116484,1734031832394,-1009.92,0.0002076,2]
[345116485,1734031832403,-1003.8,0.0002076,2]
[345116486,1734031832414,-1004.29,0.0002076,2]
[345116487,1734031832423,-1006.5,0.0002076,2]
[345116488,1734031832432,-1000.92,0.0002076,2]
[345116489,1734031832441,-1019.03,0.0002076,2]
[345116490,1734031832451,-983.72,0.0002076,2]
[345116491,1734031832460,-150.91858,0.00020862,3]
[345116492,1734031832469,-300.0,0.000209,7]
[345116493,1734031832479,-4125.0362,0.00020902,2]
[345116494,1734031832488,-999.68,0.00020902,2]
[345116495,1734031832507,-983.82,0.00020902,2]
[345116496,1734031832517,-1901.327,0.00020959,2]
[345116497,1734031832527,-173.571,0.00020968,2]
[345116498,1734031832536,-999.8147743,0.00020971,2]
[345116499,1734031832546,-391.0,0.00020974,2]
[345116500,1734031832556,-700.0,0.00021,7]
[345116501,1734031832566,-975.06,0.00021,2]
[345116502,1734031832577,-1000.0,0.000211,7]
[345116503,1734031832587,-150.0,0.00021126,2]
[345116504,1734031832597,-150.0,0.00021127,2]
[345116505,1734031832607,-150.0,0.00021142,2]
[345116506,1734031832618,-150.0,0.00021151,2]
[345116507,1734031832627,-150.0,0.00021154,2]
[345116509,1734031832637,-150.0,0.00021163,2]
[345116511,1734031832647,-150.0,0.00021163,2]
[345116513,1734031832656,-150.0,0.00021167,2]
[345116515,1734031832666,-150.0,0.00021168,2]
[345116516,1734031832676,-150.0,0.00021171,2]
[345116518,1734031832685,-150.0,0.00021172,2]
[345116520,1734031832695,-150.0,0.00021183,2]
[345116522,1734031832704,-1635.90131,0.0002119,2]
[345116524,1734031832714,-150.0,0.0002119,2]
[345116526,1734031832724,-150.0,0.00021193,2]
[345116528,1734031832734,-1400.0,0.000212,7]
[345116530,1734031832745,-150.0,0.00021202,2]
[345116532,1734031832754,-150.0,0.00021205,2]
[345116534,1734031832764,-150.0,0.00021209,2]
[345116536,1734031832773,-500.0,0.00021225,2]
[345116538,1734031832783,-999.99,0.00021225,2]
[345116540,1734031832793,-10177.80794028,0.00021236,2]
[345116542,1734031832803,-8666.3198577,0.00021238,2]
[345116544,1734031832812,-200.0,0.00021238,2]
[345116545,1734031832822,-200.0,0.0002124,2]
[345116547,1734031832831,-2880.55004098,0.0002124,2]
[345116550,1734031832841,-200.0,0.00021245,2]
[345116552,1734031832851,-10177.80794028,0.0002125,2]
[345116553,1734031832860,-150.0,0.0002125,2]
[345116556,1734031832870,-2880.55004098,0.00021253,2]
[345116558,1734031832880,-8666.3198577,0.00021253,2]
[345116559,1734031832889,-664.68686668,0.00021253,2]
[345116562,1734031832901,-1199.76,0.00021253,2]
[345116564,1734031832913,-8313.3610736,0.00021253,2]
[345116566,1734031832923,-150.0,0.00021256,2]
[345116567,1734031832932,-256.0,0.00021262,2]
[345116568,1734031832942,-461.18,0.00021262,2]
[345116569,1734031832951,-150.99,0.00021262,2]
[345116570,1734031832961,-299.99,0.00021262,7]
[345116571,1734031832971,-150.99,0.00021262,2]
[345116572,1734031832980,-10177.80794028,0.00021263,2]
[345116573,1734031832990,-2880.55004098,0.00021268,2]
[345116574,1734031833002,-150.0,0.00021269,2]
[345116575,1734031833011,-150.0,0.00021273,2]
[345116576,1734031833021,-8666.3198577,0.00021274,2]
[345116577,1734031833030,-150.0,0.00021275,2]
[345116578,1734031833040,-200.0,0.00021276,2]
[345116579,1734031833049,-364.47,0.00021277,2]
[345116580,1734031833059,-364.47,0.00021277,2]
[345116581,1734031833068,-364.47,0.00021277,2]
[345116582,1734031833078,-150.0,0.00021278,2]
[345116583,1734031833087,-150.0,0.00021278,2]
[345116584,1734031833097,-200.0,0.0002128,2]
[345116585,1734031833106,-8666.3198577,0.00021283,2]
[345116586,1734031833117,-10177.80794028,0.00021285,2]
[345116587,1734031833127,-200.0,0.00021286,2]
[345116588,1734031833137,-2880.55004098,0.00021288,2]
[345116589,1734031833305,-150.0,0.0002129,2]
[345116590,1734031833315,-4786.84890369,0.00021294,2]
[345116591,1734031833331,-3879.47095401,0.00021294,2]
[345116592,1734031833342,-10177.80794028,0.00021295,2]
[345116593,1734031833354,-2880.55004098,0.00021295,2]
[345116594,1734031833364,-8666.3198577,0.00021296,2]
[345116595,1734031833374,-2880.55004098,0.00021297,2]
[345116596,1734031833385,-161.23184659,0.00021298,2]
[345116597,1734031833395,-150.0,0.00021299,2]
[345116598,1734031833404,-1076.00299325,0.00021299,5]
[345116599,1734031833414,-218.5881,0.000213,2]
[345116600,1734031833424,-500.0,0.000213,2]
[345116601,1734031833434,-32567.6982,0.000213,2]
[345116602,1734031833444,-177.19366407,0.000213,2]
[345116603,1734031833453,-6988.3738,0.000213,2]
[345116604,1734031833463,-13335.4019,0.000213,2]
[345116605,1734031833473,-168.60221587,0.000213,2]
[345116606,1734031833483,-1700.0,0.000213,7]
[345116607,1734031833493,-258.05529266,0.000213,2]
[345116608,1734031833505,-157.87833538,0.000213,2]
[345116609,1734031833515,-885.0854,0.000213,2]
[345116610,1734031833524,-5000.0,0.000213,2]
[345116611,1734031833534,-469.05097827,0.000213,2]
[345116612,1734031833543,-2500.0,0.000213,2]
[345116613,1734031833552,-150.0,0.00021305,2]
[345116614,1734031833562,-258.05529266,0.00021327,2]
[345116615,1734031833571,-150.0,0.00021338,2]
[345116616,1734031833581,-150.0,0.00021343,2]
[345116617,1734031833591,-150.0,0.00021343,2]
[345116618,1734031833601,-150.0,0.00021344,2]
[345116619,1734031833610,-150.0,0.00021346,2]
[345116620,1734031833620,-150.0,0.00021351,2]
[345116621,1734031833629,-258.05529266,0.00021354,2]
[345116622,1734031833638,-150.0,0.00021355,2]
[345116623,1734031833648,-1011.41,0.00021361,2]
[345116624,1734031833657,-150.0,0.0002137,2]
[345116625,1734031833666,-150.0,0.00021373,2]
[345116626,1734031833676,-168.60221583,0.00021374,2]
[345116627,1734031833685,-469.05097821,0.00021379,2]
[345116628,1734031833695,-258.05529266,0.00021382,2]
[345116629,1734031833704,-237.18024433,0.0002139,2]
[345116630,1734031833713,-155.6,0.0002139,2]
[345116631,1734031833723,-8892.2170477,0.00021394,2]
[345116632,1734031833732,-1076.00299325,0.00021399,5]
[345116633,1734031833741,-1076.00299325,0.00021399,5]
[345116634,1734031833762,-1076.00299325,0.00021399,5]
[345116635,1734031833771,-1076.00299326,0.00021399,5]
[345116636,1734031833782,-1636.0,0.000214,2]
[345116637,1734031833791,-300.0,0.000214,7]
[345116638,1734031833801,-174460.62850511,0.000214,2]
[345116639,1734031833813,-272.1666045,0.000214,2]
[345116640,1734031833825,-784.20528,0.000214,2]
[345116641,1734031833844,-510.0,0.000214,2]
[345116642,1734031834264,-4016.70858,0.000214,2]
[345116643,1734031837606,150.0,9.486e-05,2]
[345116644,1734031837657,150.0,9.443e-05,2]
[345116651,1734031837810,-3238.5,0.000214,2]
[345116652,1734031837866,150.0,9.321e-05,2]
[345116653,1734031837887,-17183.079,0.000214,2]
[345116654,1734031837899,-995.62649901,0.000214,2]
[345116655,1734031837911,-1002.88571244,0.000214,2]
[345116656,1734031838066,-4212.734526,0.000214,2]
[345116657,1734031838711,-8034.39172251,0.000214,2]
[345116658,1734031838723,-10008.19714477,0.000214,2]
[345116659,1734031838734,-1571.8262783,0.000214,2]
[345116660,1734031838780,-22673.64598965,0.000214,2]
[345116661,1734031838792,-58178.73876134,0.000214,2]
[345116662,1734031838804,-303.51807464,0.000214,2]
[345116663,1734031838816,-7798.47166889,0.000214,2]
[345116664,1734031838827,-1000.8,0.000214,2]
[345116807,1734031840483,-1624.0,0.000214,2]
[345116808,1734031840493,-3527.31699996,0.000214,2]
[345116809,1734031840525,-342.27999997,0.000214,2]
[345116810,1734031840536,-702.87217,0.000214,2]
[345116813,1734031840564,-7822.15314853,0.000214,2]
[345116815,1734031840576,-6018.13,0.000214,2]
[345116817,1734031840590,-2481.64233421,0.000214,2]
[345116818,1734031840614,-37586.3663711,0.000214,2]
[345116819,1734031840690,-7374.18091163,0.000214,2]
[345116820,1734031842361,153.0,0.00018629,2]
[345116821,1734031842589,153.0,0.00018629,2]
[345116824,1734031842817,153.0,0.00018629,2]
[345116828,1734031843020,-1015.33,0.00020242,2]
[345116829,1734031843030,-1093.05845549,0.000214,2]
[345116830,1734031843041,-2808.944,0.000214,2]
[345116831,1734031843072,153.0,0.00018629,2]
[345116832,1734031843088,-100120.02,0.000214,2]
[345116833,1734031843100,-8395.7999993,0.000214,2]
[345116834,1734031843218,-22996.160001,0.000214,2]
[345116835,1734031843230,-355.10500808,0.000214,2]
[345116836,1734031843242,-537.05035242,0.000214,2]
[345116837,1734031843264,-694.87663524,0.000214,2]
[345116838,1734031843276,-6968.07887371,0.000214,2]
[345116839,1734031843288,-1096.47153303,0.000214,2]
[345116840,1734031843300,-5242.06451952,0.000214,2]
[345116841,1734031843350,153.0,0.00018629,2]
[345116850,1734031843606,153.0,0.00018629,2]
[345116851,1734031843907,153.0,0.00018629,2]
[345116852,1734031844291,153.0,0.00018629,2]
[345116853,1734031844517,153.0,0.00018629,2]
[345116854,1734031844739,153.0,0.00018629,2]
[345116855,1734031845220,153.0,0.00018629,2]
[345116856,1734031845566,153.0,0.00018629,2]
[345116861,1734031845828,153.0,0.00018629,2]
[345116862,1734031845885,-500.6001,0.000214,2]
[345116863,1734031845896,-958.3999,0.000214,2]
[345116864,1734031845905,-63381.35859878,0.000214,2]
[345116865,1734031845933,-404209.94574087,0.000214,2]
[345116866,1734031845943,-200.0,0.000214,2]
[345116867,1734031845952,-2975.7772536,0.000214,2]
[345116868,1734031845961,-364.47,0.000214,2]
[345116869,1734031845970,-871.3,0.000214,2]
[345116870,1734031845981,-258.05529266,0.00021409,2]
[345116871,1734031845990,-258.05529266,0.00021436,2]
[345116872,1734031845999,-168.60221583,0.00021448,2]
[345116873,1734031846012,-593170.22205449,0.00021453,6]
[345116874,1734031846027,-22258.89972449,0.00021453,6]
[345116875,1734031846039,-1605.3965147,0.00021453,6]
[345116876,1734031846070,153.0,0.00018629,2]
[345116877,1734031846140,-500.3,0.00021453,6]
[345116878,1734031846153,-517.00411,0.00021453,6]
[345116879,1734031846165,-3774.32760972,0.00021453,6]
[345116880,1734031846177,-971.98284001,0.00021453,6]
[345116881,1734031846242,-19717.91471571,0.00021453,6]
[345116882,1734031846275,153.0,0.00018629,2]
[345116883,1734031846289,-365.70883633,0.00021453,6]
[345116888,1734031846565,153.0,0.00018629,2]
[345116889,1734031846786,106.7891252,0.00018629,2]
[345116891,1734032438177,247.84,0.00010137,2]
[345116894,1734032730139,-450.0,0.00013,2]
[345116895,1734032730163,-153.39,0.00013699,2]
[345116896,1734032730187,-500.0,0.00015,2]
[345116897,1734032730210,-247.84,0.00016813,2]
[345116898,1734032730232,-550.0,0.00017,2]
[345116899,1734032730254,-246.32676792,0.00017452,2]
[345116900,1734032837209,-253.67323208,0.00017452,2]
[345116901,1734032837231,-150.0,0.00018164,2]
[345116902,1734032837252,-935.22,0.00018183,2]
[345116903,1734032837275,-153.0,0.00018556,2]
[345116904,1734032837299,-153.0,0.00018556,2]
[345116905,1734032837321,-153.0,0.00018556,2]
[345116906,1734032837344,-153.0,0.00018556,2]
[345116907,1734032837365,-153.0,0.00018556,2]
[345116908,1734032837385,-153.0,0.00018556,2]
[345116909,1734032837407,-153.0,0.00018556,2]
[345116910,1734032837429,-153.0,0.00018556,2]
[345116911,1734032837455,-153.0,0.00018556,2]
[345116912,1734032837476,-188.0,0.00018629,30]
[345116913,1734032837496,-839.54444969,0.00018629,2]
[345116914,1734032842103,-1195.51583796,0.00018629,2]
[345116915,1734032845195,-455.55428062,0.00018629,2]
[345116919,1734033010336,4195.0,0.000175,2]
[345116920,1734033011018,802.11031415,0.000175,2]
[345116921,1734033011043,2972.88968585,0.000175,2]
[345116928,1734033032076,-284.38951938,0.00018536,2]
[345116929,1734033032086,-7509.37543173,0.00018629,2]
[345116930,1734033032096,-6.57568088,0.00018629,2]
[345116931,1734033032333,-4978.4,0.00018629,2]
[345116932,1734033032488,-5015.01431912,0.00018629,2]
[345116933,1734033032497,-4922.77619756,0.00018999,2]
[345116934,1734033036356,-279.69657276,0.00018999,2]
[345116935,1734033036367,-1075.43,0.00018999,2]
[345116936,1734033036378,-310.8934765,0.00018999,2]
[345116937,1734033036389,-8958.14233717,0.00018999,2]
[345116938,1734033036401,-600.0,0.00019,2]
[345116939,1734033036411,-471.94887683,0.00019,2]
[345116940,1734033036421,-4054.09106022,0.00019,2]
[345116941,1734033036432,-476.67512439,0.00019,2]
[345116942,1734033036444,-271.0,0.00019,2]
[345117138,1734033038206,-4262.625768,0.00019,2]
[345117140,1734033038216,-26510.99917056,0.00019,2]
[345117142,1734033038225,-200.0,0.00019484,2]
[345117144,1734033038235,-1196.14,0.00019498,2]
[345117146,1734033038244,-23900.0,0.00019527,2]
[345117148,1734033038254,-299.99,0.00019527,7]
[345117150,1734033038263,-157.54,0.00019529,2]
[345117152,1734033038272,-1852.42,0.00019538,2]
[345117153,1734033038282,-181.22,0.00019654,2]
[345117155,1734033038290,-200.0,0.00019854,2]
[345117157,1734033038299,-275.66,0.00019979,2]
[345117159,1734033038309,-150.0,0.0002,2]
[345117161,1734033038318,-1000.0,0.00020003,2]
[345117163,1734033038328,-768.88,0.00020041,2]
[345117165,1734033038337,-436.0,0.00020041,2]
[345117167,1734033038346,-768.88,0.00020041,2]
[345117169,1734033038356,-436.0,0.00020041,2]
[345117171,1734033038366,-436.0,0.00020041,2]
[345117173,1734033038375,-768.88,0.00020041,2]
[345117175,1734033038385,-436.0,0.00020141,2]
[345117177,1734033038398,-768.88,0.00020141,2]
[345117179,1734033038407,-2690.22,0.00020174,2]
[345117180,1734033038416,-153.6,0.00020194,2]
[345117181,1734033038425,-550.33,0.00020207,2]
[345117182,1734033038434,-250.0,0.00020241,2]
[345117183,1734033038443,-160.11,0.00020256,2]
[345117184,1734033038453,-250.0,0.00020268,2]
[345117185,1734033038462,-3000.0,0.000203,2]
[345117186,1734033038471,-448.712,0.0002038,2]
[345117187,1734033038481,-435.1,0.00020393,30]
[345117188,1734033038490,-935.22,0.00020447,2]
[345117189,1734033038499,-150.0,0.00020455,2]
[345117190,1734033038508,-150.0,0.00020455,2]
[345117191,1734033038517,-150.0,0.00020455,2]
[345117192,1734033038527,-150.0,0.00020455,2]
[345117194,1734033038536,-302.37,0.00020455,2]
[345117195,1734033038545,-150.0,0.00020455,2]
[345117196,1734033038554,-150.0,0.00020455,2]
[345117197,1734033038563,-5435.40805614,0.000205,2]
[345117198,1734033038573,-436.0,0.00020515,2]
[345117199,1734033038583,-668.77,0.00020515,2]
[345117201,1734033038592,-434.47,0.00020515,2]
[345117203,1734033038601,-436.0,0.00020641,2]
[345117204,1734033038610,-364.47,0.00020678,2]
[345117205,1734033038620,-150.0,0.00020678,2]
[345117206,1734033038629,-150.0,0.00020678,2]
[345117207,1734033038638,-435.5,0.00020678,2]
[345117208,1734033038651,-364.47,0.00020778,2]
[345117209,1734033038660,-436.0,0.000209,2]
[345117210,1734033038671,-768.88,0.000209,2]
[345117211,1734033038682,-436.0,0.000209,2]
[345117212,1734033038692,-1537.53,0.000209,2]
[345117213,1734033038701,-153.6,0.00020941,2]
[345117214,1734033038710,-410.241209,0.00020957,2]
[345117215,1734033038721,-168.60221583,0.00020986,2]
[345117216,1734033038730,-519.96608714,0.00020986,2]
[345117217,1734033038740,-177.19366407,0.00020993,2]
[345117218,1734033038750,-1416.88879103,0.00021,30]
[345117219,1734033038760,-650.0,0.00021,2]
[345117220,1734033038769,-5000.0,0.00021,2]
[345117221,1734033038778,-406.51084781,0.00021,2]
[345117222,1734033038788,-499.9073872,0.00021019,2]
[345117223,1734033038797,-155.6,0.00021069,2]
[345117224,1734033038806,-500.0,0.00021073,2]
[345117225,1734033038815,-519.96608706,0.00021078,2]
[345117226,1734033038825,-20000.0,0.00021079,2]
[345117227,1734033038834,-782544.6230154,0.00021079,2]
[345117228,1734033038846,-17176.08217172,0.00021079,2]
[345117229,1734033038857,-970.66528482,0.00021079,2]
[345117232,1734033038971,-13668.45781756,0.00021079,2]
[345117234,1734033038982,-9508.53582093,0.00021079,2]
[345117235,1734033038993,-142709.11504727,0.00021079,2]
[345117237,1734033039004,-3584.136,0.00021079,2]
[345117238,1734033039015,-1210.80474074,0.00021079,2]
[345117239,1734033039037,-9028.0769237,0.00021079,2]
[345117240,1734033039048,-577.24213962,0.00021079,2]
[345117241,1734033039060,-1155.3792788,0.00021079,2]
[345117242,1734033039103,-742.33869218,0.00021079,2]
[345117243,1734033039114,-10047.97477076,0.00021079,2]
[345117244,1734033039125,-337.83016865,0.00021079,2]
[345117275,1734033040131,-2067.26932474,0.00020979,2]
[345117289,1734033040260,-2749.38087526,0.00020979,2]
[345117290,1734033040270,-19876.51226188,0.00021079,2]
[345117302,1734033040380,-995.37438,0.00021079,2]
[345117304,1734033040392,-4881.45745605,0.00021079,2]
[345117307,1734033040411,-842.7986356,0.00021079,2]
[345117309,1734033040424,-10151.1237,0.00021079,2]
[345117323,1734033040549,-3775.75767165,0.00021079,2]
[345117325,1734033040560,-1808.45000001,0.00021079,2]
[345117327,1734033040573,-4966.6,0.00021079,2]
[345117330,1734033040585,-300.30000015,0.00021079,2]
[345117332,1734033040595,-794.69398079,0.00021079,2]
[345117361,1734033040862,-809.62,0.00021079,2]
[345117364,1734033040874,-1718.33040598,0.00021079,2]
[345117367,1734033040886,-2110.77505,0.00021079,2]
[345117369,1734033040906,-1965.9277212,0.00021079,2]
[345117371,1734033040919,-487.01393314,0.00021079,2]
[345117560,1734033044852,-296.21242944,0.00020041,2]
[345117562,1734033044864,-472.66757056,0.00020041,2]
[345117564,1734033044875,-8944.63242946,0.00021079,2]
[345117580,1734033044964,-8066.0294875,0.00021079,2]
[345117581,1734033044976,-30810.42719147,0.00021079,2]
[345117582,1734033045068,-6181.10321841,0.00021079,2]
[345117583,1734033045081,-11333.44997056,0.00021079,2]
[345117584,1734033045094,-19447.79076565,0.00021079,2]
[345117585,1734033045106,-993.09488511,0.00021079,2]
[345117586,1734033045158,-713.69713628,0.00021079,2]
[345117587,1734033045171,-259.2714,0.00021079,2]
[345117588,1734033045184,-2687.98777082,0.00021079,2]
[345117589,1734033045197,-1195.48,0.00021079,2]
[345117591,1734033045337,-6332.2849218,0.00021079,2]
[345117593,1734033045350,-1830.0600117,0.00021079,2]
[345117596,1734033045363,-974.28791137,0.00021079,2]
[345117598,1734033045373,-155.6,0.0002109,2]
[345117600,1734033045383,-2162.37816044,0.000211,2]
[345117621,1734033046487,-967.35958999,0.000211,2]
[345117622,1734033046499,-591.22499952,0.000211,2]
[345117623,1734033046544,-7160.0000025,0.000211,2]
[345117624,1734033046580,-280.18248048,0.000211,2]
[345117625,1734033046591,-472.52160288,0.000211,2]
[345117626,1734033046603,-51751.71673622,0.000211,2]
[345117627,1734033046691,-3999.42611812,0.000211,2]
[345117628,1734033046702,-14689.98887201,0.000211,2]
[345117629,1734033046715,-996.300305,0.000211,2]
[345117630,1734033046728,-13096.86260884,0.000211,2]
[345117631,1734033046761,-89588.00000006,0.000211,2]
[345117632,1734033047042,-3369.57634214,0.000211,2]
[345117633,1734033047055,-82089.2992818,0.000211,2]
[345117634,1734033047065,-1000.0,0.000211,2]
[345117635,1734033047075,-1000.0,0.000211,2]
[345117636,1734033047084,-1000.0,0.000211,2]
[345117637,1734033047094,-406.51084778,0.000211,2]
[345117638,1734033047104,-519.96608706,0.00021171,2]
[345117639,1734033047114,-1500.0,0.00021186,2]
[345117640,1734033047123,-1500.0,0.0002119,2]
[345117641,1734033047133,-168.60221583,0.00021194,2]
[345117642,1734033047143,-259.2456,0.000212,2]
[345117643,1734033047156,-406.51084778,0.000212,2]
[345117644,1734033047166,-150.0,0.00021201,2]
[345117645,1734033047176,-410.24121,0.00021234,2]
[345117646,1734033047186,-747.20206592,0.00021242,2]
[345117647,1734033047195,-15193.32780455,0.00021244,2]
[345117648,1734033047204,-1500.0,0.00021244,2]
[345117649,1734033047214,-150.0,0.00021247,2]
[345117650,1734033047346,-613.3349976,0.00021248,2]
[345117651,1734033047358,-500.0,0.00021252,2]
[345117652,1734033047367,-747.20206592,0.00021253,2]
[345117653,1734033047376,-613.3349976,0.00021256,2]
[345117654,1734033047386,-2866.183,0.00021261,2]
[345117655,1734033047400,-1500.0,0.00021261,2]
[345117656,1734033047410,-264.88365096,0.00021262,2]
[345117657,1734033047419,-1000.0,0.00021262,2]
[345117658,1734033047428,-1000.0,0.00021262,2]
[345117659,1734033047436,-1000.0,0.00021262,2]
[345117660,1734033047445,-1000.0,0.00021262,2]
[345117661,1734033047454,-1000.0,0.00021262,2]
[345117662,1734033047464,-1000.0,0.00021262,2]
[345117663,1734033047473,-1000.0,0.00021262,2]
[345117664,1734033047483,-1000.0,0.00021262,2]
[345117665,1734033047492,-1000.0,0.00021262,2]
[345117666,1734033047502,-1000.0,0.00021262,2]
[345117667,1734033047512,-1000.0,0.00021262,2]
[345117668,1734033047521,-1000.0,0.00021262,2]
[345117669,1734033047531,-1000.0,0.00021262,2]
[345117670,1734033047540,-1000.0,0.00021262,2]
[345117671,1734033047550,-1000.0,0.00021262,2]
[345117672,1734033047559,-1000.0,0.00021262,2]
[345117673,1734033047569,-1000.0,0.00021262,2]
[345117674,1734033047578,-1000.0,0.00021262,2]
[345117675,1734033047587,-1000.0,0.00021262,2]
[345117676,1734033047596,-1000.0,0.00021262,2]
[345117677,1734033047605,-1000.0,0.00021262,2]
[345117678,1734033047615,-1000.0,0.00021262,2]
[345117679,1734033047625,-1000.0,0.00021262,2]
[345117680,1734033047634,-1000.0,0.00021262,2]
[345117681,1734033047643,-1000.0,0.00021262,2]
[345117682,1734033047657,-1000.0,0.00021262,2]
[345117683,1734033047666,-1000.0,0.00021262,2]
[345117684,1734033047681,-1000.0,0.00021262,2]